{"text_format":"1","workbook":"xlsx","n_sheets":2,"sheets":["Vstupné údaje kalkulačky","šablóna_výplatnej_pásky"],"not_rendered":{"charts":0,"images":0,"macros":1,"external_links":0,"defined_names":7,"comments":0,"pivot_tables":0},"unopened":[],"bounds":{"document_bytes":16777216,"sheet_cells":100000,"rows_first":2000,"rows_last":500,"rows_between":2000,"halvings":0,"cell_chars":16384,"cell_head_chars":4096},"cells_cut":0,"cells_raw":0,"read":"whole","date_system":"1900"}

{"sheet":"Vstupné údaje kalkulačky","index":0,"n_rows":13,"n_cols":24,"rows_kept":13,"cut":false,"hidden":false,"merged":[]}
[null,"KALKULAČKA NA VÝPOČET MZDY",null,null,null,null,null,null,null,null,"KONIEC\nOBDOBIA:",41372,null,"NÁZOV SPOLOČNOSTI:",null,"ADVENTURE WORKS"]
[]
[null,"Identifikácia","Meno zamestnanca","Počet riadnych odpracovaných hodín","Počet hodín dovolenky","PN v hodinách","Hodiny práce nadčas","Sadzba za prácu nadčas","Hrubá mzda","Dane a zrážky","Iné\nzrážky","Čistá mzda"," ","Hodinová mzda","Daňová\nskupina","Štátne daňové zvýhodnenie","Daň štátu","Daň z príjmu","Sadzba soc.\npoistenia","Sadzba\nzdravotného poistenia","Celková zrážka dane","Zrážka za poistné","Iné pravidelné zrážky","Celkové pravidelné\nzrážky"]
[null,1001,"Milan Mihálik",50,5,1,null,null,{"$f":"SUM(Pracovníci[[#This Row],[Počet riadnych odpracovaných hodín]:[PN v hodinách]])*Pracovníci[[#This Row],[Hodinová mzda]]+Pracovníci[[#This Row],[Hodiny práce nadčas]]*Pracovníci[[#This Row],[Sadzba za prácu nadčas]]","v":560},{"$f":"Pracovníci[[#This Row],[Hrubá mzda]]*Pracovníci[[#This Row],[Celková zrážka dane]] + Pracovníci[[#This Row],[Celkové pravidelné\nzrážky]]","v":273.08000000000004},20,{"$f":"Pracovníci[[#This Row],[Hrubá mzda]]-Pracovníci[[#This Row],[Dane a zrážky]]-Pracovníci[[#This Row],[Iné\nzrážky]]","v":266.91999999999996},null,10,1,4,2.3E-2,0.28000000000000003,6.3E-2,1.4500000000000001E-2,{"$f":"SUM(Pracovníci[[#This Row],[Daň štátu]:[Sadzba\nzdravotného poistenia]])","v":0.38050000000000006},20,40,{"$f":"SUM(Pracovníci[[#This Row],[Zrážka za poistné]:[Iné pravidelné zrážky]])","v":60}]
[null,1002,"Juraj Šimko",40,null,null,null,null,{"$f":"SUM(Pracovníci[[#This Row],[Počet riadnych odpracovaných hodín]:[PN v hodinách]])*Pracovníci[[#This Row],[Hodinová mzda]]+Pracovníci[[#This Row],[Hodiny práce nadčas]]*Pracovníci[[#This Row],[Sadzba za prácu nadčas]]","v":320},{"$f":"Pracovníci[[#This Row],[Hrubá mzda]]*Pracovníci[[#This Row],[Celková zrážka dane]] + Pracovníci[[#This Row],[Celkové pravidelné\nzrážky]]","v":131.76000000000002},null,{"$f":"Pracovníci[[#This Row],[Hrubá mzda]]-Pracovníci[[#This Row],[Dane a zrážky]]-Pracovníci[[#This Row],[Iné\nzrážky]]","v":188.23999999999998},null,8,1,1,2.3E-2,0.28000000000000003,6.3E-2,1.4500000000000001E-2,{"$f":"SUM(Pracovníci[[#This Row],[Daň štátu]:[Sadzba\nzdravotného poistenia]])","v":0.38050000000000006},0,10,{"$f":"SUM(Pracovníci[[#This Row],[Zrážka za poistné]:[Iné pravidelné zrážky]])","v":10}]
[null,1003,"Andrea Beňová",35,3,null,null,null,{"$f":"SUM(Pracovníci[[#This Row],[Počet riadnych odpracovaných hodín]:[PN v hodinách]])*Pracovníci[[#This Row],[Hodinová mzda]]+Pracovníci[[#This Row],[Hodiny práce nadčas]]*Pracovníci[[#This Row],[Sadzba za prácu nadčas]]","v":532},{"$f":"Pracovníci[[#This Row],[Hrubá mzda]]*Pracovníci[[#This Row],[Celková zrážka dane]] + Pracovníci[[#This Row],[Celkové pravidelné\nzrážky]]","v":240.42600000000004},null,{"$f":"Pracovníci[[#This Row],[Hrubá mzda]]-Pracovníci[[#This Row],[Dane a zrážky]]-Pracovníci[[#This Row],[Iné\nzrážky]]","v":291.57399999999996},null,14,1,3,2.3E-2,0.28000000000000003,6.3E-2,1.4500000000000001E-2,{"$f":"SUM(Pracovníci[[#This Row],[Daň štátu]:[Sadzba\nzdravotného poistenia]])","v":0.38050000000000006},18,20,{"$f":"SUM(Pracovníci[[#This Row],[Zrážka za poistné]:[Iné pravidelné zrážky]])","v":38}]
[null,1008,"Karol Krištofek",50,5,1,null,null,{"$f":"SUM(Pracovníci[[#This Row],[Počet riadnych odpracovaných hodín]:[PN v hodinách]])*Pracovníci[[#This Row],[Hodinová mzda]]+Pracovníci[[#This Row],[Hodiny práce nadčas]]*Pracovníci[[#This Row],[Sadzba za prácu nadčas]]","v":1120},{"$f":"Pracovníci[[#This Row],[Hrubá mzda]]*Pracovníci[[#This Row],[Celková zrážka dane]] + Pracovníci[[#This Row],[Celkové pravidelné\nzrážky]]","v":441.16000000000008},null,{"$f":"Pracovníci[[#This Row],[Hrubá mzda]]-Pracovníci[[#This Row],[Dane a zrážky]]-Pracovníci[[#This Row],[Iné\nzrážky]]","v":678.83999999999992},null,20,1,0,2.3E-2,0.28000000000000003,6.3E-2,1.4500000000000001E-2,{"$f":"SUM(Pracovníci[[#This Row],[Daň štátu]:[Sadzba\nzdravotného poistenia]])","v":0.38050000000000006},15,null,{"$f":"SUM(Pracovníci[[#This Row],[Zrážka za poistné]:[Iné pravidelné zrážky]])","v":15}]
[null,1011,"Zuzana Nová",40,null,null,2,15,{"$f":"SUM(Pracovníci[[#This Row],[Počet riadnych odpracovaných hodín]:[PN v hodinách]])*Pracovníci[[#This Row],[Hodinová mzda]]+Pracovníci[[#This Row],[Hodiny práce nadčas]]*Pracovníci[[#This Row],[Sadzba za prácu nadčas]]","v":430},{"$f":"Pracovníci[[#This Row],[Hrubá mzda]]*Pracovníci[[#This Row],[Celková zrážka dane]] + Pracovníci[[#This Row],[Celkové pravidelné\nzrážky]]","v":223.61500000000004},null,{"$f":"Pracovníci[[#This Row],[Hrubá mzda]]-Pracovníci[[#This Row],[Dane a zrážky]]-Pracovníci[[#This Row],[Iné\nzrážky]]","v":206.38499999999996},null,10,1,0,2.3E-2,0.28000000000000003,6.3E-2,1.4500000000000001E-2,{"$f":"SUM(Pracovníci[[#This Row],[Daň štátu]:[Sadzba\nzdravotného poistenia]])","v":0.38050000000000006},20,40,{"$f":"SUM(Pracovníci[[#This Row],[Zrážka za poistné]:[Iné pravidelné zrážky]])","v":60}]
[null,1012,"Peter Lehotský",40,5,1,null,null,{"$f":"SUM(Pracovníci[[#This Row],[Počet riadnych odpracovaných hodín]:[PN v hodinách]])*Pracovníci[[#This Row],[Hodinová mzda]]+Pracovníci[[#This Row],[Hodiny práce nadčas]]*Pracovníci[[#This Row],[Sadzba za prácu nadčas]]","v":552},{"$f":"Pracovníci[[#This Row],[Hrubá mzda]]*Pracovníci[[#This Row],[Celková zrážka dane]] + Pracovníci[[#This Row],[Celkové pravidelné\nzrážky]]","v":270.03600000000006},null,{"$f":"Pracovníci[[#This Row],[Hrubá mzda]]-Pracovníci[[#This Row],[Dane a zrážky]]-Pracovníci[[#This Row],[Iné\nzrážky]]","v":281.96399999999994},null,12,1,4,2.3E-2,0.28000000000000003,6.3E-2,1.4500000000000001E-2,{"$f":"SUM(Pracovníci[[#This Row],[Daň štátu]:[Sadzba\nzdravotného poistenia]])","v":0.38050000000000006},20,40,{"$f":"SUM(Pracovníci[[#This Row],[Zrážka za poistné]:[Iné pravidelné zrážky]])","v":60}]
[null,1025,"Zuzana Nagyová",36,null,2,1,18,{"$f":"SUM(Pracovníci[[#This Row],[Počet riadnych odpracovaných hodín]:[PN v hodinách]])*Pracovníci[[#This Row],[Hodinová mzda]]+Pracovníci[[#This Row],[Hodiny práce nadčas]]*Pracovníci[[#This Row],[Sadzba za prácu nadčas]]","v":474},{"$f":"Pracovníci[[#This Row],[Hrubá mzda]]*Pracovníci[[#This Row],[Celková zrážka dane]] + Pracovníci[[#This Row],[Celkové pravidelné\nzrážky]]","v":225.35700000000003},25,{"$f":"Pracovníci[[#This Row],[Hrubá mzda]]-Pracovníci[[#This Row],[Dane a zrážky]]-Pracovníci[[#This Row],[Iné\nzrážky]]","v":223.64299999999997},null,12,1,2,2.3E-2,0.28000000000000003,6.3E-2,1.4500000000000001E-2,{"$f":"SUM(Pracovníci[[#This Row],[Daň štátu]:[Sadzba\nzdravotného poistenia]])","v":0.38050000000000006},25,20,{"$f":"SUM(Pracovníci[[#This Row],[Zrážka za poistné]:[Iné pravidelné zrážky]])","v":45}]
[null,1032,"Martin Horváth",40,5,1,null,null,{"$f":"SUM(Pracovníci[[#This Row],[Počet riadnych odpracovaných hodín]:[PN v hodinách]])*Pracovníci[[#This Row],[Hodinová mzda]]+Pracovníci[[#This Row],[Hodiny práce nadčas]]*Pracovníci[[#This Row],[Sadzba za prácu nadčas]]","v":460},{"$f":"Pracovníci[[#This Row],[Hrubá mzda]]*Pracovníci[[#This Row],[Celková zrážka dane]] + Pracovníci[[#This Row],[Celkové pravidelné\nzrážky]]","v":175.03000000000003},50,{"$f":"Pracovníci[[#This Row],[Hrubá mzda]]-Pracovníci[[#This Row],[Dane a zrážky]]-Pracovníci[[#This Row],[Iné\nzrážky]]","v":234.96999999999997},null,10,1,3,2.3E-2,0.28000000000000003,6.3E-2,1.4500000000000001E-2,{"$f":"SUM(Pracovníci[[#This Row],[Daň štátu]:[Sadzba\nzdravotného poistenia]])","v":0.38050000000000006},null,null,{"$f":"SUM(Pracovníci[[#This Row],[Zrážka za poistné]:[Iné pravidelné zrážky]])","v":0}]
[null,1049,"Matej Gajdoš",40,1,null,null,null,{"$f":"SUM(Pracovníci[[#This Row],[Počet riadnych odpracovaných hodín]:[PN v hodinách]])*Pracovníci[[#This Row],[Hodinová mzda]]+Pracovníci[[#This Row],[Hodiny práce nadčas]]*Pracovníci[[#This Row],[Sadzba za prácu nadčas]]","v":615},{"$f":"Pracovníci[[#This Row],[Hrubá mzda]]*Pracovníci[[#This Row],[Celková zrážka dane]] + Pracovníci[[#This Row],[Celkové pravidelné\nzrážky]]","v":259.00750000000005},23,{"$f":"Pracovníci[[#This Row],[Hrubá mzda]]-Pracovníci[[#This Row],[Dane a zrážky]]-Pracovníci[[#This Row],[Iné\nzrážky]]","v":332.99249999999995},null,15,1,2,2.3E-2,0.28000000000000003,6.3E-2,1.4500000000000001E-2,{"$f":"SUM(Pracovníci[[#This Row],[Daň štátu]:[Sadzba\nzdravotného poistenia]])","v":0.38050000000000006},25,null,{"$f":"SUM(Pracovníci[[#This Row],[Zrážka za poistné]:[Iné pravidelné zrážky]])","v":25}]
[null,"Celkovo",{"$f":"SUBTOTAL(103,Pracovníci[Meno zamestnanca])","v":9},{"$f":"SUBTOTAL(109,Pracovníci[Počet riadnych odpracovaných hodín])","v":371},{"$f":"SUBTOTAL(109,Pracovníci[Počet hodín dovolenky])","v":24},{"$f":"SUBTOTAL(109,Pracovníci[PN v hodinách])","v":6},{"$f":"SUBTOTAL(109,Pracovníci[Hodiny práce nadčas])","v":3},null,{"$f":"SUBTOTAL(109,Pracovníci[Hrubá mzda])","v":5063},{"$f":"SUBTOTAL(109,Pracovníci[Dane a zrážky])","v":2239.4715000000001},{"$f":"SUBTOTAL(109,Pracovníci[Iné\nzrážky])","v":118},{"$f":"SUBTOTAL(109,Pracovníci[Čistá mzda])","v":2705.5284999999994},null,null,null,null,null,null,null,null,null,{"$f":"SUBTOTAL(109,Pracovníci[Zrážka za poistné])","v":143},{"$f":"SUBTOTAL(109,Pracovníci[Iné pravidelné zrážky])","v":170},{"$f":"SUBTOTAL(109,Pracovníci[Celkové pravidelné\nzrážky])","v":313}]

{"sheet":"šablóna_výplatnej_pásky","index":1,"n_rows":47,"n_cols":13,"rows_kept":47,"cut":false,"hidden":true,"merged":[[45,2,45,3],[32,2,32,3],[33,2,33,3],[20,2,20,3],[21,2,21,3],[2,3,2,4],[14,3,14,4],[26,3,26,4],[38,3,38,4],[44,2,44,3],[8,2,8,3],[9,2,9,3],[2,7,2,8],[14,7,14,8],[26,7,26,8],[38,7,38,8],[38,11,38,12],[26,11,26,12],[14,11,14,12],[2,11,2,12]]}
[]
[null,null,{"$f":"NázovSpoločnosti","v":"ADVENTURE WORKS"}]
[null,null,"OBDOBIE",{"$f":"KoniecObdobia","v":41372},null,null,"MENO",{"$f":"IFERROR(INDEX(Pracovníci[Meno zamestnanca],Výplatnápáska),\"\")","v":"Milan Mihálik"},null,null,"ČÍSLO ZAMESTNANCA",{"$f":"IFERROR(INDEX(Pracovníci[Identifikácia],Výplatnápáska),\"\")","v":1001}]
[null,null,"Daňový stav",null,{"$f":"IFERROR(INDEX(Pracovníci[Daňová\nskupina],Výplatnápáska),\"\")","v":1},null,"Daňové zvýhodnenie (formulár W-4)",null,{"$f":"IFERROR(INDEX(Pracovníci[Štátne daňové zvýhodnenie],Výplatnápáska),\"\")","v":4},null,"Počet odpracovaných hodín",null,{"$f":"IFERROR(INDEX(Pracovníci[Počet riadnych odpracovaných hodín],Výplatnápáska),\"\")","v":50}]
[null,null,"Hodinová sadzba",null,{"$f":"IFERROR(INDEX(Pracovníci[Hodinová mzda],Výplatnápáska),\"\")","v":10},null,"Sadzba za prácu nadčas",null,{"$f":"IFERROR(INDEX(Pracovníci[Sadzba za prácu nadčas],Výplatnápáska),\"\")","v":0},null,"PN v hodinách",null,{"$f":"IFERROR(INDEX(Pracovníci[PN v hodinách],Výplatnápáska),\"\")","v":1}]
[null,null,"Sadzba sociálneho poistenia",null,{"$f":"IFERROR(INDEX(Pracovníci[Sadzba soc.\npoistenia],Výplatnápáska)  *  INDEX(Pracovníci[Hrubá mzda],Výplatnápáska),\"\")","v":35.28},null,"Štátna daň z príjmu ",null,{"$f":"IFERROR(INDEX(Pracovníci[Daň z príjmu],Výplatnápáska)  *  INDEX(Pracovníci[Hrubá mzda],Výplatnápáska),\"\")","v":156.80000000000001},null,"Počet hodín dovolenky",null,{"$f":"IFERROR(INDEX(Pracovníci[Počet hodín dovolenky],Výplatnápáska),\"\")","v":5}]
[null,null,"Sadzba zdravotného poistenia ",null,{"$f":"IFERROR(INDEX(Pracovníci[Sadzba\nzdravotného poistenia],Výplatnápáska)  *  INDEX(Pracovníci[Hrubá mzda],Výplatnápáska),\"\")","v":8.120000000000001},null,"Daň štátu",null,{"$f":"IFERROR(INDEX(Pracovníci[Daň štátu],Výplatnápáska)  *  INDEX(Pracovníci[Hrubá mzda],Výplatnápáska),\"\")","v":12.879999999999999},null,"Hodiny práce nadčas",null,{"$f":"IFERROR(INDEX(Pracovníci[Hodiny práce nadčas],Výplatnápáska),\"\")","v":0}]
[null,null,"Zrážka za poistné",null,{"$f":"IFERROR(INDEX(Pracovníci[Zrážka za poistné],Výplatnápáska),\"\")","v":20},null,"Iné pravidelné zrážky",null,{"$f":"IFERROR(INDEX(Pracovníci[Iné pravidelné zrážky],Výplatnápáska),\"\")","v":40},null,"Hrubá mzda",null,{"$f":"IFERROR(INDEX(Pracovníci[Hrubá mzda],Výplatnápáska),\"\")","v":560}]
[null,null,"Dane a",null,{"$f":"IFERROR(INDEX(Pracovníci[Dane a zrážky],Výplatnápáska),\"\")","v":273.08000000000004},null,"Iné zrážky",null,{"$f":"IFERROR(INDEX(Pracovníci[Iné\nzrážky],Výplatnápáska),\"\")","v":20},null,"Celkové dane a zrážky ",null,{"$f":"IFERROR(INDEX(Pracovníci[Dane a zrážky],Výplatnápáska)  +  INDEX(Pracovníci[Iné\nzrážky],Výplatnápáska),\"\")","v":293.08000000000004}]
[null,null,"pravidelné zrážky "]
[null,null,null,null,null,null,null,null,null,null,"ČISTÁ MZDA",null,{"$f":"IFERROR(INDEX(Pracovníci[Čistá mzda],Výplatnápáska),\"\")","v":266.91999999999996}]
[]
[]
[null,null,{"$f":"NázovSpoločnosti","v":"ADVENTURE WORKS"}]
[null,null,"OBDOBIE",{"$f":"KoniecObdobia","v":41372},null,null,"MENO",{"$f":"IFERROR(INDEX(Pracovníci[Meno zamestnanca],Výplatnápáska),\"\")","v":"Juraj Šimko"},null,null,"ČÍSLO ZAMESTNANCA",{"$f":"IFERROR(INDEX(Pracovníci[Identifikácia],Výplatnápáska),\"\")","v":1002}]
[null,null,"Daňový stav",null,{"$f":"IFERROR(INDEX(Pracovníci[Daňová\nskupina],Výplatnápáska),\"\")","v":1},null,"Daňové zvýhodnenie (formulár W-4)",null,{"$f":"IFERROR(INDEX(Pracovníci[Štátne daňové zvýhodnenie],Výplatnápáska),\"\")","v":1},null,"Počet odpracovaných hodín",null,{"$f":"IFERROR(INDEX(Pracovníci[Počet riadnych odpracovaných hodín],Výplatnápáska),\"\")","v":40}]
[null,null,"Hodinová sadzba",null,{"$f":"IFERROR(INDEX(Pracovníci[Hodinová mzda],Výplatnápáska),\"\")","v":8},null,"Sadzba za prácu nadčas",null,{"$f":"IFERROR(INDEX(Pracovníci[Sadzba za prácu nadčas],Výplatnápáska),\"\")","v":0},null,"PN v hodinách",null,{"$f":"IFERROR(INDEX(Pracovníci[PN v hodinách],Výplatnápáska),\"\")","v":0}]
[null,null,"Sadzba sociálneho poistenia",null,{"$f":"IFERROR(INDEX(Pracovníci[Sadzba soc.\npoistenia],Výplatnápáska)  *  INDEX(Pracovníci[Hrubá mzda],Výplatnápáska),\"\")","v":20.16},null,"Štátna daň z príjmu ",null,{"$f":"IFERROR(INDEX(Pracovníci[Daň z príjmu],Výplatnápáska)  *  INDEX(Pracovníci[Hrubá mzda],Výplatnápáska),\"\")","v":89.600000000000009},null,"Počet hodín dovolenky",null,{"$f":"IFERROR(INDEX(Pracovníci[Počet hodín dovolenky],Výplatnápáska),\"\")","v":0}]
[null,null,"Sadzba zdravotného poistenia ",null,{"$f":"IFERROR(INDEX(Pracovníci[Sadzba\nzdravotného poistenia],Výplatnápáska)  *  INDEX(Pracovníci[Hrubá mzda],Výplatnápáska),\"\")","v":4.6400000000000006},null,"Daň štátu",null,{"$f":"IFERROR(INDEX(Pracovníci[Daň štátu],Výplatnápáska)  *  INDEX(Pracovníci[Hrubá mzda],Výplatnápáska),\"\")","v":7.3599999999999994},null,"Hodiny práce nadčas",null,{"$f":"IFERROR(INDEX(Pracovníci[Hodiny práce nadčas],Výplatnápáska),\"\")","v":0}]
[null,null,"Zrážka za poistné",null,{"$f":"IFERROR(INDEX(Pracovníci[Zrážka za poistné],Výplatnápáska),\"\")","v":0},null,"Iné pravidelné zrážky",null,{"$f":"IFERROR(INDEX(Pracovníci[Iné pravidelné zrážky],Výplatnápáska),\"\")","v":10},null,"Hrubá mzda",null,{"$f":"IFERROR(INDEX(Pracovníci[Hrubá mzda],Výplatnápáska),\"\")","v":320}]
[null,null,"Dane a",null,{"$f":"IFERROR(INDEX(Pracovníci[Dane a zrážky],Výplatnápáska),\"\")","v":131.76000000000002},null,"Iné zrážky",null,{"$f":"IFERROR(INDEX(Pracovníci[Iné\nzrážky],Výplatnápáska),\"\")","v":0},null,"Celkové dane a zrážky ",null,{"$f":"IFERROR(INDEX(Pracovníci[Dane a zrážky],Výplatnápáska)  +  INDEX(Pracovníci[Iné\nzrážky],Výplatnápáska),\"\")","v":131.76000000000002}]
[null,null,"pravidelné zrážky "]
[null,null,null,null,null,null,null,null,null,null,"ČISTÁ MZDA",null,{"$f":"IFERROR(INDEX(Pracovníci[Čistá mzda],Výplatnápáska),\"\")","v":188.23999999999998}]
[]
[]
[null,null,{"$f":"NázovSpoločnosti","v":"ADVENTURE WORKS"}]
[null,null,"OBDOBIE",{"$f":"KoniecObdobia","v":41372},null,null,"MENO",{"$f":"IFERROR(INDEX(Pracovníci[Meno zamestnanca],Výplatnápáska),\"\")","v":"Andrea Beňová"},null,null,"ČÍSLO ZAMESTNANCA",{"$f":"IFERROR(INDEX(Pracovníci[Identifikácia],Výplatnápáska),\"\")","v":1003}]
[null,null,"Daňový stav",null,{"$f":"IFERROR(INDEX(Pracovníci[Daňová\nskupina],Výplatnápáska),\"\")","v":1},null,"Daňové zvýhodnenie (formulár W-4)",null,{"$f":"IFERROR(INDEX(Pracovníci[Štátne daňové zvýhodnenie],Výplatnápáska),\"\")","v":3},null,"Počet odpracovaných hodín",null,{"$f":"IFERROR(INDEX(Pracovníci[Počet riadnych odpracovaných hodín],Výplatnápáska),\"\")","v":35}]
[null,null,"Hodinová sadzba",null,{"$f":"IFERROR(INDEX(Pracovníci[Hodinová mzda],Výplatnápáska),\"\")","v":14},null,"Sadzba za prácu nadčas",null,{"$f":"IFERROR(INDEX(Pracovníci[Sadzba za prácu nadčas],Výplatnápáska),\"\")","v":0},null,"PN v hodinách",null,{"$f":"IFERROR(INDEX(Pracovníci[PN v hodinách],Výplatnápáska),\"\")","v":0}]
[null,null,"Sadzba sociálneho poistenia",null,{"$f":"IFERROR(INDEX(Pracovníci[Sadzba soc.\npoistenia],Výplatnápáska)  *  INDEX(Pracovníci[Hrubá mzda],Výplatnápáska),\"\")","v":33.515999999999998},null,"Štátna daň z príjmu ",null,{"$f":"IFERROR(INDEX(Pracovníci[Daň z príjmu],Výplatnápáska)  *  INDEX(Pracovníci[Hrubá mzda],Výplatnápáska),\"\")","v":148.96},null,"Počet hodín dovolenky",null,{"$f":"IFERROR(INDEX(Pracovníci[Počet hodín dovolenky],Výplatnápáska),\"\")","v":3}]
[null,null,"Sadzba zdravotného poistenia ",null,{"$f":"IFERROR(INDEX(Pracovníci[Sadzba\nzdravotného poistenia],Výplatnápáska)  *  INDEX(Pracovníci[Hrubá mzda],Výplatnápáska),\"\")","v":7.7140000000000004},null,"Daň štátu",null,{"$f":"IFERROR(INDEX(Pracovníci[Daň štátu],Výplatnápáska)  *  INDEX(Pracovníci[Hrubá mzda],Výplatnápáska),\"\")","v":12.236000000000001},null,"Hodiny práce nadčas",null,{"$f":"IFERROR(INDEX(Pracovníci[Hodiny práce nadčas],Výplatnápáska),\"\")","v":0}]
[null,null,"Zrážka za poistné",null,{"$f":"IFERROR(INDEX(Pracovníci[Zrážka za poistné],Výplatnápáska),\"\")","v":18},null,"Iné pravidelné zrážky",null,{"$f":"IFERROR(INDEX(Pracovníci[Iné pravidelné zrážky],Výplatnápáska),\"\")","v":20},null,"Hrubá mzda",null,{"$f":"IFERROR(INDEX(Pracovníci[Hrubá mzda],Výplatnápáska),\"\")","v":532}]
[null,null,"Dane a",null,{"$f":"IFERROR(INDEX(Pracovníci[Dane a zrážky],Výplatnápáska),\"\")","v":240.42600000000004},null,"Iné zrážky",null,{"$f":"IFERROR(INDEX(Pracovníci[Iné\nzrážky],Výplatnápáska),\"\")","v":0},null,"Celkové dane a zrážky ",null,{"$f":"IFERROR(INDEX(Pracovníci[Dane a zrážky],Výplatnápáska)  +  INDEX(Pracovníci[Iné\nzrážky],Výplatnápáska),\"\")","v":240.42600000000004}]
[null,null,"pravidelné zrážky "]
[null,null,null,null,null,null,null,null,null,null,"ČISTÁ MZDA",null,{"$f":"IFERROR(INDEX(Pracovníci[Čistá mzda],Výplatnápáska),\"\")","v":291.57399999999996}]
[]
[]
[null,null,{"$f":"NázovSpoločnosti","v":"ADVENTURE WORKS"}]
[null,null,"OBDOBIE",{"$f":"KoniecObdobia","v":41372},null,null,"MENO",{"$f":"IFERROR(INDEX(Pracovníci[Meno zamestnanca],Výplatnápáska),\"\")","v":"Karol Krištofek"},null,null,"ČÍSLO ZAMESTNANCA",{"$f":"IFERROR(INDEX(Pracovníci[Identifikácia],Výplatnápáska),\"\")","v":1008}]
[null,null,"Daňový stav",null,{"$f":"IFERROR(INDEX(Pracovníci[Daňová\nskupina],Výplatnápáska),\"\")","v":1},null,"Daňové zvýhodnenie (formulár W-4)",null,{"$f":"IFERROR(INDEX(Pracovníci[Štátne daňové zvýhodnenie],Výplatnápáska),\"\")","v":0},null,"Počet odpracovaných hodín",null,{"$f":"IFERROR(INDEX(Pracovníci[Počet riadnych odpracovaných hodín],Výplatnápáska),\"\")","v":50}]
[null,null,"Hodinová sadzba",null,{"$f":"IFERROR(INDEX(Pracovníci[Hodinová mzda],Výplatnápáska),\"\")","v":20},null,"Sadzba za prácu nadčas",null,{"$f":"IFERROR(INDEX(Pracovníci[Sadzba za prácu nadčas],Výplatnápáska),\"\")","v":0},null,"PN v hodinách",null,{"$f":"IFERROR(INDEX(Pracovníci[PN v hodinách],Výplatnápáska),\"\")","v":1}]
[null,null,"Sadzba sociálneho poistenia",null,{"$f":"IFERROR(INDEX(Pracovníci[Sadzba soc.\npoistenia],Výplatnápáska)  *  INDEX(Pracovníci[Hrubá mzda],Výplatnápáska),\"\")","v":70.56},null,"Štátna daň z príjmu ",null,{"$f":"IFERROR(INDEX(Pracovníci[Daň z príjmu],Výplatnápáska)  *  INDEX(Pracovníci[Hrubá mzda],Výplatnápáska),\"\")","v":313.60000000000002},null,"Počet hodín dovolenky",null,{"$f":"IFERROR(INDEX(Pracovníci[Počet hodín dovolenky],Výplatnápáska),\"\")","v":5}]
[null,null,"Sadzba zdravotného poistenia ",null,{"$f":"IFERROR(INDEX(Pracovníci[Sadzba\nzdravotného poistenia],Výplatnápáska)  *  INDEX(Pracovníci[Hrubá mzda],Výplatnápáska),\"\")","v":16.240000000000002},null,"Daň štátu",null,{"$f":"IFERROR(INDEX(Pracovníci[Daň štátu],Výplatnápáska)  *  INDEX(Pracovníci[Hrubá mzda],Výplatnápáska),\"\")","v":25.759999999999998},null,"Hodiny práce nadčas",null,{"$f":"IFERROR(INDEX(Pracovníci[Hodiny práce nadčas],Výplatnápáska),\"\")","v":0}]
[null,null,"Zrážka za poistné",null,{"$f":"IFERROR(INDEX(Pracovníci[Zrážka za poistné],Výplatnápáska),\"\")","v":15},null,"Iné pravidelné zrážky",null,{"$f":"IFERROR(INDEX(Pracovníci[Iné pravidelné zrážky],Výplatnápáska),\"\")","v":0},null,"Hrubá mzda",null,{"$f":"IFERROR(INDEX(Pracovníci[Hrubá mzda],Výplatnápáska),\"\")","v":1120}]
[null,null,"Dane a",null,{"$f":"IFERROR(INDEX(Pracovníci[Dane a zrážky],Výplatnápáska),\"\")","v":441.16000000000008},null,"Iné zrážky",null,{"$f":"IFERROR(INDEX(Pracovníci[Iné\nzrážky],Výplatnápáska),\"\")","v":0},null,"Celkové dane a zrážky ",null,{"$f":"IFERROR(INDEX(Pracovníci[Dane a zrážky],Výplatnápáska)  +  INDEX(Pracovníci[Iné\nzrážky],Výplatnápáska),\"\")","v":441.16000000000008}]
[null,null,"pravidelné zrážky "]
[null,null,null,null,null,null,null,null,null,null,"ČISTÁ MZDA",null,{"$f":"IFERROR(INDEX(Pracovníci[Čistá mzda],Výplatnápáska),\"\")","v":678.83999999999992}]